bitfinex-derivatives/quotes_ETHF0:USTF0_20250116
["timestamp","ask_amount","ask_price","bid_price","bid_amount"]
[1737055631355,2.35414966,3332.7,3332.6,3.80802]
[1737055632848,0.60018,3332.8,3332.7,0.6002]
[1737055633053,0.60018,3332.8,3332.7,1.8002]
[1737055633252,0.60017,3332.9,3332.8,0.60016]
[1737055637348,0.60018,3332.8,3332.7,1.70017]
[1737055639855,0.60017,3332.9,3332.8,0.60016]
[1737055640953,2.35414966,3333.0,3332.6,3.2078]
[1737055641160,0.60024,3332.6,3332.5,0.60023]
[1737055641459,0.60024,3332.6,3332.5,1.2]
[1737055642260,0.60027,3332.3,3332.2,4.65109384]
[1737055642558,0.60027,3332.3,3332.2,5.25138384]
[1737055643061,0.60024,3332.6,3332.5,0.60022]
[1737055643659,2.95438966,3332.6,3332.5,0.60022]
[1737055644062,2.35414966,3332.6,3332.5,0.60022]
[1737055645167,2.95433966,3332.8,3332.7,0.6002]
[1737055645762,2.35414966,3332.8,3332.7,0.6002]
[1737055646065,0.60018,3332.8,3332.7,0.6002]
[1737055652764,0.6002,3332.7,3332.6,3.2078]
[1737055652967,1.561,3332.7,3332.6,3.2078]
[1737055653162,1.561,3332.7,3332.6,3.80802]
[1737055653363,1.561,3332.7,3332.6,3.2078]
[1737055653764,1.561,3332.7,3332.6,3.80802]
[1737055654862,5.09603615,3332.7,3332.6,3.80802]
[1737055655069,5.09603615,3332.7,3332.6,3.2078]
[1737055655271,5.09603615,3332.7,3332.6,3.80802]
[1737055658274,5.09603615,3332.7,3332.6,0.60022]
[1737055658473,3.53503615,3332.7,3332.6,0.60022]
[1737055659667,3.53503615,3332.7,3332.3,1.199]
[1737055659872,0.60025,3332.5,3332.4,0.60024]
[1737055660570,1.55073,3332.6,3332.5,0.60024]
[1737055661072,3.90986102,3332.6,3332.5,0.60024]
[1737055664474,0.60025,3332.5,3332.4,0.60024]
[1737055664772,0.60025,3332.4,3332.3,6.45036384]
[1737055664969,0.60025,3332.4,3332.3,1.199]
[1737055666373,0.60025,3332.4,3332.3,1.79927]
[1737055667574,4.13528615,3332.4,3332.3,1.79927]
[1737055669074,2.95964658,3332.4,3332.3,1.79927]
[1737055669270,2.35939658,3332.4,3332.3,1.79927]
[1737055670478,2.95964658,3332.4,3332.3,1.79927]
[1737055670879,2.35939658,3332.4,3332.3,1.79927]
[1737055671471,2.95963658,3332.5,3332.4,0.60025]
[1737055671979,2.95963658,3332.5,3332.4,1.06435]
[1737055673080,2.35939658,3332.5,3332.3,1.199]
[1737055673279,0.60025,3332.4,3332.3,1.79926]
[1737055675875,2.96016381,3332.4,3332.3,1.79926]
[1737055676075,2.96016381,3332.4,3332.3,0.60026]
[1737055677383,0.60025,3332.4,3332.3,0.60026]
[1737055678781,4.13528615,3332.4,3332.3,0.60026]
[1737055680182,0.60025,3332.4,3332.3,0.60026]
[1737055681683,4.13528615,3332.4,3332.3,0.60026]
[1737055681987,5.03568615,3332.4,3332.1,10.00269384]
[1737055682180,0.60029,3332.2,3332.1,7.39517384]
[1737055682880,2.96027129,3332.2,3332.1,2.74408]
[1737055684784,0.60029,3332.2,3332.1,2.74408]
[1737055685279,0.60031,3332.1,3332.0,4.65109384]
[1737055685484,2.01801,3332.1,3332.0,4.65109384]
[1737055687587,2.01801,3332.1,3331.5,9.98902322]
[1737055687588,0.6004,3331.6,3331.5,0.6004]
[1737055688376,0.60042,3331.5,3331.4,5.25150384]
[1737055688986,0.60042,3331.5,3331.4,0.60041]
[1737055693089,0.60042,3331.6,3331.5,0.6004]
[1737055693788,2.35735476,3331.7,3331.5,40.8]
[1737055693987,2.35735476,3331.7,3331.6,0.6004]
[1737055694385,2.95773476,3331.7,3331.6,0.6004]
[1737055695389,0.60038,3331.7,3331.6,0.6004]
[1737055700784,5.48609683,3331.9,3331.3,41.7313]
[1737055700988,0.60041,3331.7,3331.6,0.60038]
[1737055701796,3.80815,3331.9,3331.8,0.60036]
[1737055704290,3.80815,3331.9,3331.4,1.50109]
[1737055704291,0.60041,3331.7,3331.6,0.60037]
[1737055704995,0.60041,3331.7,3331.4,1.199]
[1737055705193,0.60042,3331.5,3331.4,1.79942]
[1737055708298,1.077,3331.6,3331.5,0.60042]
[1737055708688,2.35735476,3331.8,3331.5,1.50105]
[1737055708898,2.95772476,3331.8,3331.7,0.60038]
[1737055709401,0.60037,3331.8,3331.7,0.60038]
[1737055709703,6.16551476,3331.9,3331.8,0.60036]
[1737055710597,3.80816,3331.9,3331.8,0.60036]
[1737055711389,0.60036,3331.9,3331.8,0.60036]
[1737055713196,2.35735476,3332.2,3331.5,7.85889384]
[1737055713395,2.35735476,3332.2,3332.1,0.60031]
[1737055713599,2.95764476,3332.2,3332.1,0.60031]
[1737055714002,2.35735476,3332.2,3332.1,0.60031]
[1737055714203,0.60029,3332.2,3332.1,0.60031]
[1737055715902,2.95763476,3332.3,3332.2,0.60029]
[1737055718496,0.60031,3332.2,3332.1,0.6003]
[1737055720902,2.95766476,3332.2,3332.1,0.6003]
[1737055726004,2.35735476,3332.2,3332.1,0.6003]
[1737055726405,2.35735476,3332.2,3332.1,1.7993]
[1737055727302,1.22645584,3332.4,3332.3,2.87856683]
[1737055727602,4.71717262,3332.6,3332.5,0.60024]
[1737055728005,4.71717262,3332.6,3332.5,41.40024]
[1737055728408,0.60013,3333.1,3333.0,0.60015]
[1737055729299,0.60015,3333.0,3332.9,1.199]
[1737055729506,1.05445,3333.0,3332.9,1.199]
[1737055731909,1.05445,3333.0,3332.5,0.60022]
[1737055731910,0.60022,3332.6,3332.5,0.60022]
[1737055733610,0.60022,3332.6,3332.2,0.60027]
[1737055733611,0.60029,3332.3,3332.2,0.60027]
[1737055734212,1.54319,3332.3,3332.2,0.60027]
[1737055736912,5.65142,3332.3,3331.8,4.68108047]
[1737055737107,6.08643683,3331.9,3331.8,4.68108047]
[1737055737304,3.80814,3331.9,3331.8,4.68108047]
[1737055737604,3.80814,3331.9,3331.8,5.28144047]
[1737055738109,3.80814,3331.9,3331.8,4.68108047]
[1737055738304,6.08643683,3331.9,3331.8,4.68108047]
[1737055738701,6.08643683,3331.9,3331.6,0.6004]
[1737055738702,5.48609683,3331.9,3331.6,0.6004]
[1737055738907,0.60038,3331.7,3331.6,0.6004]
[1737055739311,1.05198,3331.7,3331.6,0.6004]
[1737055741405,0.4594,3331.8,3331.7,0.60038]
[1737055741814,0.4949,3332.1,3332.0,0.60033]
[1737055742016,0.9886,3332.1,3332.0,0.60033]
[1737055742411,1.58891,3332.1,3332.0,0.60033]
[1737055743720,0.9886,3332.1,3331.8,0.9177]
[1737055743906,0.60034,3332.0,3331.9,0.60034]
[1737055744413,0.60036,3331.9,3331.8,0.60035]
[1737055744615,2.27829683,3331.9,3331.5,7.88888047]
[1737055744813,0.6004,3331.6,3331.5,7.88888047]
[1737055745013,0.6004,3331.6,3331.5,4.68108047]
[1737055745313,3.77919683,3331.9,3331.4,0.60042]
[1737055745610,1.07772,3331.5,3331.4,0.60042]
[1737055748215,11.70400945,3332.2,3331.2,42.4755]
[1737055748515,1.05496,3331.9,3331.8,0.60034]
[1737055749019,0.60039,3331.8,3331.7,0.60037]
[1737055749523,0.60041,3331.7,3331.6,0.60038]
[1737055749815,0.60038,3331.8,3331.7,0.60036]
[1737055750818,0.60041,3331.7,3331.6,0.60038]
[1737055751520,0.60044,3331.5,3331.4,0.60041]
[1737055751821,0.6004,3331.6,3331.5,0.60038]
[1737055754729,0.60044,3331.5,3331.4,0.60042]
[1737055756520,1.07191,3331.6,3331.5,0.60042]
[1737055756716,1.0719,3331.6,3331.5,0.60042]
[1737055757925,0.4715,3331.6,3331.5,0.60042]
[1737055758324,0.4715,3331.6,3331.5,41.40042]
[1737055758521,0.60038,3331.8,3331.7,0.60036]
[1737055760130,0.60038,3331.8,3331.7,1.08406]
[1737055761222,1.05496,3331.9,3331.8,0.60036]
[1737055762131,0.4546,3331.9,3331.5,44.0078]
[1737055762323,0.4546,3331.9,3331.4,1.50106]
[1737055762324,2.73289683,3331.9,3331.3,0.9474]
[1737055762519,2.73289683,3331.9,3331.4,5.28149047]
[1737055762520,0.60043,3331.5,3331.4,5.28149047]
[1737055762729,0.60043,3331.5,3331.4,4.68108047]
[1737055762926,0.60043,3331.5,3331.4,5.28151047]
[1737055763322,1.08693,3331.5,3331.4,5.28151047]
[1737055763930,1.08693,3331.5,3331.4,0.60043]
[1737055764431,0.60045,3331.4,3331.3,0.60044]
[1737055764627,1.07575,3331.4,3331.3,0.60044]
[1737055765128,1.07575,3331.4,3330.9,1.199]
[1737055765129,3.6831,3331.4,3330.9,1.199]
[1737055765330,0.6005,3331.2,3331.1,0.60047]
[1737055767734,0.4779,3331.3,3330.9,1.6577]
[1737055767936,3.6831,3331.4,3331.0,1.50127]
[1737055768130,1.07577,3331.4,3331.3,0.60045]
[1737055768535,0.60048,3331.3,3331.2,0.60046]
[1737055769435,1.07575,3331.4,3331.3,0.60045]
[1737055771739,0.60049,3331.3,3331.2,0.60046]
[1737055772341,0.60045,3331.3,3331.2,0.60046]
[1737055773635,2.27829683,3331.3,3330.9,1.6577]
[1737055773943,0.60051,3331.1,3331.0,0.60049]
[1737055775441,0.60046,3331.3,3330.9,1.50131]
[1737055775646,4.28355,3331.4,3331.3,0.60045]
[1737055777947,3.6831,3331.4,3331.3,0.60045]
[1737055778145,4.28353,3331.4,3331.3,0.60045]
[1737055781047,1.07573,3331.4,3331.3,0.60045]
[1737055781345,9.42592262,3331.8,3331.7,0.60038]
[1737055781346,7.92497262,3331.8,3331.7,0.60038]
[1737055781749,10.80362945,3331.8,3331.7,0.60038]
[1737055782752,5.48609683,3331.8,3331.4,5.87908047]
[1737055782950,0.60042,3331.6,3331.5,0.6004]
[1737055783345,0.4576,3331.6,3331.5,0.6004]
[1737055783545,1.058,3331.6,3331.5,0.6004]
[1737055785450,0.4576,3331.6,3331.3,4.68108047]
[1737055785648,3.80823,3331.4,3331.3,4.68108047]
[1737055787052,3.80823,3331.4,3331.2,7.02162071]
[1737055787053,0.60047,3331.2,3331.1,0.60048]
[1737055790159,1.05087,3331.2,3331.1,0.60048]
[1737055790860,0.60047,3331.2,3331.1,0.60048]
[1737055791461,0.60047,3331.2,3331.1,41.40048]
[1737055793752,3.54110542,3331.3,3331.0,4.68108047]
[1737055793953,0.60049,3331.1,3331.0,5.28156047]
[1737055794558,1.07569,3331.1,3331.0,5.28156047]
[1737055794761,1.07569,3331.1,3331.0,0.60048]
[1737055795854,0.60051,3331.0,3330.9,4.68108047]
[1737055796058,0.60051,3331.0,3330.9,1.64908047]
[1737055796059,4.26711,3331.0,3330.9,1.64908047]
[1737055797963,9.52304445,3331.0,3330.2,1.198]
[1737055798262,0.60063,3330.4,3330.3,0.60061]
[1737055800862,0.60061,3330.5,3330.4,0.6006]
[1737055801862,0.60063,3330.3,3330.2,1.79864]
[1737055802756,0.60067,3330.1,3330.0,7.02162071]
[1737055802955,6.08676683,3330.1,3330.0,7.02162071]
[1737055803462,0.60069,3330.0,3329.9,7.02162071]
[1737055805255,0.60078,3329.5,3329.4,4.29939]
[1737055806767,0.6007,3330.0,3329.9,0.60069]
[1737055807069,7.23712565,3330.1,3329.4,3.6986]
[1737055807070,0.60073,3329.9,3329.8,0.60072]
[1737055807260,0.60073,3329.9,3329.8,41.40072]
[1737055808062,0.60073,3329.9,3329.8,40.8]
[1737055808462,0.60073,3329.9,3329.8,41.40072]
[1737055808963,6.74702565,3330.5,3329.8,40.8]
[1737055809169,0.60069,3330.1,3330.0,0.60067]
[1737055809565,0.60069,3330.0,3329.9,2.1267]
[1737055809764,3.80849,3330.0,3329.9,1.198]
[1737055812166,3.80849,3330.0,3329.9,1.7987]
[1737055812570,0.60065,3330.2,3330.1,0.60064]
[1737055813264,0.60067,3330.1,3330.0,1.57028]
[1737055815370,0.60078,3329.6,3329.5,1.79875]
[1737055815565,0.60078,3329.5,3329.4,3.80858]
[1737055815767,0.60078,3329.5,3329.4,3.2078]
[1737055815969,0.60078,3329.5,3329.4,3.80859]
[1737055817168,0.60073,3329.9,3329.8,0.6007]
[1737055817379,1.06941,3330.0,3329.9,0.6007]
[1737055817807,0.60071,3330.0,3329.9,0.6007]
[1737055821971,0.60068,3330.1,3330.0,0.60065]
[1737055822375,0.4547,3330.3,3329.8,0.4784]
[1737055822574,2.27829683,3329.9,3328.9,9.29991754]
[1737055822769,1.4362,3329.8,3329.3,1.198]
[1737055822990,0.60077,3329.6,3329.5,0.60074]
[1737055823507,0.60075,3329.7,3329.6,0.60074]
[1737055823706,0.9529,3329.8,3329.3,1.198]
[1737055823902,0.60078,3329.6,3329.5,0.60077]
[1737055824104,0.60078,3329.5,3329.4,3.80859]
[1737055824506,0.60078,3329.5,3329.4,3.2078]
[1737055824695,0.60085,3329.2,3329.1,0.60083]
[1737055824908,0.60085,3329.1,3329.0,41.40086]
[1737055825101,1.05675,3329.1,3329.0,40.8]
[1737055825304,1.05675,3329.1,3329.0,41.40087]
[1737055825704,1.05675,3329.1,3329.0,0.60087]
[1737055828891,0.4559,3329.1,3328.8,1.198]
[1737055829095,0.4559,3329.1,3328.5,0.60095]
[1737055829096,0.60094,3328.6,3328.5,0.60095]
[1737055829294,2.73349683,3329.0,3328.4,1.198]
[1737055829295,3.19639683,3329.0,3328.4,1.198]
[1737055829483,0.60092,3328.8,3328.7,0.60089]
[1737055830878,0.4552,3329.0,3328.5,44.4858]
[1737055831081,0.60092,3328.8,3328.7,0.6009]
[1737055831685,0.4821,3328.9,3328.5,44.0078]
[1737055831988,0.60094,3328.7,3328.6,0.60091]
[1737055832189,0.60094,3328.7,3328.5,44.0078]
[1737055832190,2.27829683,3328.7,3328.4,1.198]
[1737055832480,0.4575,3328.6,3328.4,1.198]
[1737055832788,0.4575,3328.6,3328.5,0.60096]
[1737055834490,3.80869,3328.9,3328.8,0.6009]
[1737055834688,4.28199,3328.9,3328.8,0.6009]
[1737055836185,0.60094,3328.7,3328.6,0.60092]
[1737055836983,0.60099,3328.4,3328.3,0.60098]
[1737055837686,0.4511,3328.6,3328.1,41.998]
[1737055837895,0.4749,3328.3,3328.2,0.60101]
[1737055838088,0.4749,3328.3,3328.0,0.60103]
[1737055838089,0.60105,3328.1,3328.0,0.60103]
[1737055840894,1.08252,3328.2,3328.1,0.60103]
[1737055841889,1.08251,3328.2,3328.1,0.60103]
[1737055843895,0.4815,3328.2,3327.6,46.7086]
[1737055844197,0.4815,3328.2,3327.9,0.60105]
[1737055844198,0.60107,3328.0,3327.9,0.60105]
[1737055844590,1.08497,3328.0,3327.9,0.60105]
[1737055844790,0.60109,3327.9,3327.8,0.60107]
[1737055844989,1.98655,3328.0,3327.3,0.4554]
[1737055845189,0.60115,3327.5,3327.4,0.60114]
[1737055845389,2.87942683,3327.6,3327.5,0.60114]
[1737055845692,0.60115,3327.5,3327.4,0.60114]
[1737055845893,2.27829683,3327.6,3327.1,51.02942071]
[1737055846190,1.09267,3327.4,3327.3,0.60117]
[1737055846793,0.60119,3327.3,3327.2,0.60118]
[1737055846994,0.60121,3327.1,3327.0,41.40121]
[1737055847185,0.60121,3327.1,3326.5,5.48609683]
[1737055847186,0.60128,3326.7,3326.6,7.62291071]
[1737055847595,0.60128,3326.7,3326.6,0.60129]
[1737055848501,0.60128,3326.7,3326.2,8.98443071]
[1737055848502,3.2078,3326.9,3326.2,7.02162071]
[1737055848698,2.87964683,3326.4,3326.3,0.60134]
[1737055849695,0.60135,3326.4,3326.3,0.60134]
[1737055849899,0.4781,3326.6,3326.5,0.60132]
[1737055850092,1.0794,3326.6,3326.5,0.60132]
[1737055850794,0.4781,3326.6,3326.5,0.60132]
[1737055850988,1.0794,3326.6,3326.5,0.60132]
[1737055851193,0.60132,3326.5,3326.4,0.60133]
[1737055851897,1.07941,3326.6,3326.5,0.60132]
[1737055852297,0.4781,3326.6,3326.5,0.60132]
[1737055852601,3.2078,3327.3,3326.5,3.80912]
[1737055852803,3.6631,3327.3,3327.2,0.60119]
[1737055853003,0.60113,3327.6,3326.9,4.7109]
[1737055853299,0.60113,3327.6,3327.5,0.60114]
[1737055853605,2.87942683,3327.6,3327.5,0.60114]
[1737055854892,3.2078,3327.7,3327.6,0.60112]
[1737055856099,1.05638,3327.9,3327.8,0.60108]
[1737055856597,0.4553,3327.9,3327.8,0.60108]
[1737055857399,1.05637,3327.9,3327.8,0.60108]
[1737055857702,0.4553,3327.9,3327.8,0.60108]
[1737055857904,0.60106,3328.1,3328.0,0.60104]
[1737055859500,3.2078,3328.3,3327.6,2.70078]
[1737055859701,0.60105,3328.1,3328.0,0.60103]
[1737055860599,0.60105,3328.1,3327.6,2.70078]
[1737055860600,3.6958,3328.3,3327.6,2.70078]
[1737055860800,3.2078,3328.3,3328.2,0.60101]
[1737055861109,0.60099,3328.4,3328.3,0.60098]
[1737055861406,0.60101,3328.3,3328.2,0.60101]
[1737055861597,0.6011,3327.7,3327.6,1.198]
[1737055861793,2.87939683,3327.7,3327.6,1.79912]
[1737055862500,0.6011,3327.7,3327.6,1.79912]
[1737055863102,0.60113,3327.6,3327.5,0.60112]
[1737055865603,3.2078,3327.9,3327.3,2.0977]
[1737055865803,0.6011,3327.8,3327.7,0.60109]
[1737055867500,3.2078,3327.9,3327.7,0.60109]
[1737055867501,3.2078,3328.4,3327.7,1.50273]
[1737055867705,3.2078,3328.4,3327.8,0.4516]
[1737055868004,0.60103,3328.2,3328.1,0.60101]
[1737055868402,3.2078,3328.4,3328.2,0.60099]
[1737055868403,0.60102,3328.3,3328.2,0.60099]
[1737055870211,3.2078,3328.4,3327.8,0.4516]
[1737055870412,0.6011,3327.7,3327.6,3.2078]
[1737055870710,0.60111,3327.7,3327.6,0.60109]
[1737055871914,0.6011,3327.8,3327.7,0.60108]
[1737055872110,0.601,3328.3,3327.9,0.60106]
[1737055872406,6.16048288,3328.5,3328.4,0.60097]
[1737055872608,2.35171288,3328.5,3328.4,0.60097]
[1737055873109,2.95267288,3328.5,3328.4,0.60097]
[1737055873305,2.35171288,3328.5,3328.4,0.60097]
[1737055873703,4.02272565,3328.6,3328.5,0.60096]
[1737055873704,0.4835,3328.6,3328.5,0.60096]
[1737055873906,0.60093,3328.7,3328.6,0.60094]
[1737055875305,1.06311,3328.8,3328.7,0.60092]
[1737055875710,1.0631,3328.8,3328.7,0.60092]
[1737055877207,0.4622,3328.8,3328.7,0.60092]
[1737055877406,1.0631,3328.8,3328.7,0.60092]
[1737055878611,0.4622,3328.8,3328.1,5.48609683]
[1737055878920,0.60095,3328.6,3328.5,0.60093]
[1737055879809,0.60093,3328.7,3328.6,0.60092]
[1737055880313,0.4622,3328.8,3328.3,40.8]
[1737055880611,0.4622,3328.8,3328.1,3.2078]
[1737055880612,0.60097,3328.5,3328.4,0.60095]
[1737055881418,0.60094,3328.7,3328.6,0.60092]
[1737055882013,0.60097,3328.6,3328.5,0.60095]
[1737055883616,0.60094,3328.7,3328.6,0.60092]
[1737055884021,1.06312,3328.8,3328.7,0.60092]
[1737055884920,0.4835,3329.1,3329.0,0.60087]
[1737055886419,1.08435,3329.1,3329.0,0.60087]
[1737055886814,0.4835,3329.1,3329.0,0.60087]
[1737055888521,1.08435,3329.1,3329.0,0.60087]
[1737055891219,1.08435,3329.1,3328.6,1.79792]
[1737055891220,0.60094,3328.7,3328.6,1.79792]
[1737055891819,0.60091,3328.8,3328.7,0.6009]
[1737055892019,1.05081,3328.8,3328.7,0.6009]
[1737055892620,0.4499,3328.8,3328.7,0.6009]
[1737055892813,1.0508,3328.8,3328.7,0.6009]
[1737055894713,1.04898268,3328.8,3328.7,0.6009]
[1737055897422,0.44808268,3328.8,3328.7,0.6009]
[1737055897925,1.04898268,3328.8,3328.7,0.6009]
[1737055899126,0.4835,3329.1,3328.6,0.4795]
[1737055899321,0.4835,3329.1,3329.0,0.60087]
[1737055899627,3.2078,3329.4,3329.3,0.60081]
[1737055899813,2.35171288,3329.5,3329.1,0.4795]
[1737055900018,2.95249288,3329.5,3329.4,0.60079]
[1737055900217,2.35171288,3329.5,3329.4,0.60079]
[1737055900419,2.35171288,3329.5,3329.3,3.2078]
[1737055900732,0.60087,3329.1,3329.0,0.60085]
[1737055900917,5.55951288,3329.5,3328.9,1.197]
[1737055901125,0.60086,3329.2,3329.1,0.60083]
[1737055902326,1.3989,3329.7,3328.9,4.4048]
[1737055902327,3.75061288,3329.7,3328.9,4.4048]
[1737055902528,4.35136288,3329.7,3329.6,0.60076]
[1737055903431,3.75061288,3329.7,3329.0,0.4515]
[1737055903636,0.60078,3329.6,3329.5,0.60076]
[1737055903825,1.99965,3329.7,3329.6,0.60076]
[1737055904128,3.2078,3329.9,3329.8,0.60072]
[1737055904326,3.44000288,3330.0,3329.9,0.6007]
[1737055905028,1.08829,3330.0,3329.9,0.6007]
[1737055906437,0.4876,3330.0,3329.9,0.6007]
[1737055907437,3.2078,3330.3,3329.7,0.48]
[1737055907630,3.6581,3330.3,3330.2,0.60065]
[1737055907832,4.25873,3330.3,3330.2,0.60065]
[1737055908039,5.15969,3330.3,3329.7,0.48]
[1737055908334,0.60074,3329.8,3329.7,0.60073]
[1737055908744,0.60072,3329.9,3329.8,0.6007]
[1737055910054,0.60074,3329.8,3329.7,0.60073]
[1737055910347,0.60074,3329.8,3329.6,1.79774]
[1737055910348,0.60074,3329.7,3329.6,1.79774]
[1737055911347,1.53683,3329.8,3329.7,0.60074]
[1737055912351,0.4626,3329.8,3329.7,0.60074]
[1737055912548,0.4626,3329.8,3329.7,1.09494]
[1737055913054,1.06332,3329.8,3329.7,0.60074]
[1737055913853,0.60079,3329.5,3329.4,1.79777]
[1737055914047,2.27829683,3329.5,3329.3,3.2078]
[1737055914357,1.09809,3329.4,3329.3,3.80861]
[1737055914955,1.09809,3329.4,3329.3,0.60081]
[1737055915246,0.4973,3329.4,3329.0,1.197]
[1737055915452,0.60085,3329.1,3329.0,1.79785]
[1737055916255,0.60085,3329.1,3329.0,1.197]
[1737055916856,0.60087,3329.0,3328.9,0.60088]
[1737055917042,0.60087,3329.0,3328.5,4.68732815]
[1737055917043,0.60094,3328.6,3328.5,4.68732815]
[1737055917648,3.80874,3328.6,3328.5,3.93892815]
[1737055917846,4.29414,3328.6,3328.5,3.19052815]
[1737055918650,3.6932,3328.6,3327.9,0.60106]
[1737055918953,0.60102,3328.3,3328.2,0.60101]
[1737055920051,0.60099,3328.4,3328.3,0.60098]
[1737055920256,0.60097,3328.5,3328.4,0.60096]
[1737055921651,0.60097,3328.5,3328.4,41.40096]
[1737055921847,2.82001288,3328.7,3328.4,40.8]
[1737055922049,2.35171288,3328.7,3328.6,0.60094]
[1737055922454,2.35171288,3328.7,3328.6,1.05514]
[1737055922655,2.35171288,3329.0,3328.6,4.26294]
[1737055922954,2.35171288,3329.0,3328.9,0.60088]
[1737055923153,2.35171288,3329.0,3328.9,1.79788]
[1737055923961,0.60086,3329.1,3328.9,1.197]
[1737055924169,0.60087,3329.0,3328.9,1.79787]
[1737055924356,0.60087,3329.0,3328.9,1.197]
[1737055924560,0.60095,3328.6,3328.5,0.60094]
[1737055925258,0.60092,3328.8,3328.7,0.60091]
[1737055925556,0.4574,3328.9,3328.8,0.6009]
[1737055925762,0.60088,3329.0,3328.9,0.60088]
[1737055926263,0.60088,3329.0,3328.9,41.40088]
[1737055928256,0.60088,3329.0,3328.9,0.60088]
[1737055933870,2.81389164,3329.3,3328.8,0.4594]
[1737055934174,0.60088,3328.9,3328.8,1.06029]
[1737055936068,0.60088,3329.0,3328.9,0.60086]
[1737055936264,0.60088,3328.9,3328.8,0.4594]
[1737055936464,0.60088,3328.9,3328.8,1.0603]
[1737055937760,0.60088,3328.9,3328.8,0.6009]
[1737055937957,0.60094,3328.6,3328.5,2.25914]
[1737055938259,0.60094,3328.6,3328.5,0.4612]
[1737055938466,0.60094,3328.6,3328.5,1.06216]
[1737055945272,0.60104,3328.2,3328.1,0.60101]
[1737055946475,1.96339,3328.3,3327.8,7.03740763]
[1737055946773,0.60107,3327.9,3327.8,0.60107]
[1737055946974,0.6011,3327.7,3327.6,0.4904]
[1737055947667,1.50263,3328.0,3327.5,0.4974]
[1737055947967,0.60114,3327.5,3327.4,7.52780763]
[1737055948168,0.60114,3327.5,3327.4,0.4904]
[1737055948468,2.27829683,3327.5,3327.1,7.99820763]
[1737055948677,0.60119,3327.2,3327.1,8.13399763]
[1737055948977,0.4888,3327.4,3327.1,48.33280763]
[1737055949268,0.4828,3327.6,3327.1,48.33280763]
[1737055949573,0.60112,3327.6,3327.5,0.60114]
[1737055950974,2.35649164,3327.9,3327.5,0.4806]
[1737055951170,0.60108,3327.9,3327.8,0.60108]
[1737055951774,0.60108,3327.9,3327.8,41.40108]
[1737055952162,0.60108,3327.9,3327.8,40.8]
[1737055952475,0.60108,3327.9,3327.8,41.40108]
[1737055953470,3.21279683,3328.1,3327.7,0.6011]
[1737055953678,0.60108,3327.8,3327.7,0.6011]
[1737055953975,0.60112,3327.7,3327.6,0.60109]
[1737055954174,0.60111,3327.8,3327.7,0.60108]
[1737055958872,0.60112,3327.7,3327.6,0.60111]
[1737055959481,0.60116,3327.5,3327.4,0.60114]
[1737055961483,0.60116,3327.4,3327.3,1.05407]
[1737055962178,0.455,3327.6,3327.3,0.4529]
[1737055962381,0.60115,3327.5,3327.4,0.60114]
[1737055962979,0.455,3327.6,3327.3,0.4529]
[1737055963181,0.60116,3327.5,3327.4,0.60114]
[1737055965084,0.455,3327.6,3327.3,0.4529]
[1737055965282,1.05614,3327.6,3327.5,0.60114]
[1737055966280,3.2078,3327.8,3327.7,0.6011]
[1737055966473,0.4979,3328.0,3327.3,0.4529]
[1737055966678,0.60113,3327.6,3327.5,0.60111]
[1737055967581,1.09896,3328.0,3327.9,0.60106]
[1737055967779,0.60108,3327.9,3327.8,0.60107]
[1737055968676,1.09896,3328.0,3327.9,0.60106]
[1737055970982,3.80882,3328.2,3328.1,0.60103]
[1737055971182,2.35649164,3328.3,3328.2,0.60101]
[1737055972183,0.60098,3328.4,3328.3,0.60099]
[1737055972781,2.35649164,3328.6,3328.0,4.71038]
[1737055973087,0.60096,3328.5,3328.4,0.60096]
[1737055973382,2.35649164,3328.6,3328.2,0.60099]
[1737055973383,0.60102,3328.3,3328.2,0.60099]
[1737055973588,0.4919,3328.4,3328.0,3.2078]
[1737055973791,1.09733,3328.2,3328.1,0.60102]
[1737055973990,1.09733,3328.2,3327.8,1.694]
[1737055973991,0.4963,3328.2,3327.8,1.694]
[1737055974288,0.60106,3327.9,3327.8,0.497]
[1737055974477,3.2078,3327.9,3327.5,3.2078]
[1737055974679,2.87941683,3327.6,3327.5,3.2078]
[1737055974888,0.60116,3327.4,3327.3,7.63856763]
[1737055976288,0.60116,3327.4,3327.3,0.60116]
[1737055977191,0.9838,3327.8,3327.2,3.2078]
[1737055977386,2.95756164,3327.9,3327.8,0.60108]
[1737055977595,2.35649164,3327.9,3327.8,0.60108]
[1737055978092,2.95755164,3327.9,3327.8,0.60108]
[1737055978294,2.35649164,3327.9,3327.8,0.60108]
[1737055978792,0.60104,3328.1,3328.0,0.60103]
[1737055980899,2.95748164,3328.4,3328.3,0.60099]
[1737055981899,2.35649164,3328.4,3328.3,0.60099]
[1737055982394,4.13569747,3328.5,3328.4,0.60097]
[1737055982395,2.95745164,3328.5,3328.4,0.60097]
[1737055982592,2.35649164,3328.5,3328.4,0.60097]
[1737055983106,4.63478847,3328.5,3328.2,0.4603]
[1737055983306,0.60101,3328.2,3328.1,1.08562]
[1737055984402,0.4949,3328.3,3328.1,0.4846]
[1737055984706,1.0959,3328.3,3328.2,0.60101]
[1737055985206,1.0959,3328.3,3328.1,0.4846]
[1737055985207,3.2078,3328.4,3328.3,0.60099]
[1737055985704,0.60097,3328.5,3328.4,0.60097]
[1737055986599,5.8130343,3328.6,3328.1,0.4846]
[1737055986793,0.60101,3328.3,3328.2,0.601]
[1737055987403,0.60101,3328.3,3328.1,0.4846]
[1737055987404,0.60105,3328.1,3328.0,0.60103]
[1737055987600,0.60105,3328.1,3328.0,0.60105]
[1737055987798,0.60105,3328.0,3327.9,4.26915]